fUST/lending_fUST_20251230
["ID","MTS","AMOUNT","RATE_DAILY","PERIOD"]
[400087332,1767081043263,-601.7533848,0.00032499,30]
[400087333,1767081043275,-364.80523342,0.00032499,30]
[400087340,1767081047396,-166.35,0.000316,7]
[400087341,1767081047406,-720.0,0.00032762,30]
[400087342,1767081047415,-500.0,0.0003365,30]
[400087343,1767081047425,-32431.515016,0.00034,30]
[400087344,1767081048551,-682.6623395,0.00034,30]
[400087346,1767081091139,500.0,0.00024999,2]
[400087347,1767081091170,500.0,0.00024999,2]
[400087348,1767081091200,500.0,0.00024999,2]
[400087349,1767081091232,500.0,0.00024999,2]
[400087350,1767081091373,555.15885829,0.00024999,2]
[400087351,1767081091412,604.23507935,0.00024999,2]
[400087352,1767081097680,600.54316388,0.00024999,2]
[400087353,1767081097707,206.56305598,0.00024999,2]
[400087354,1767081097731,500.0,0.00024999,2]
[400087355,1767081097757,500.0,0.00024999,2]
[400087356,1767081098045,161.0,0.00019501,2]
[400087357,1767081098070,552.68549811,0.00024999,2]
[400087358,1767081098453,187.84,0.0002072,2]
[400087359,1767081098911,214.67,0.00021939,2]
[400087360,1767081099282,241.5,0.00023158,2]
[400087361,1767081099708,268.34,0.00024377,2]
[400087362,1767081138030,500.0,0.00025219,7]
[400087363,1767081138501,500.0,0.00025224,7]
[400087364,1767081158207,1112.14914557,0.000248,2]
[400087365,1767081296488,8631.8133609,0.00025923,2]
[400087367,1767081886059,2800.0,0.000136,60]
[400087368,1767081904432,-238.0,0.000136,2]
[400087369,1767081904454,-620.364034,0.00013699,2]
[400087370,1767081904476,-2500.0,0.000191,2]
[400087371,1767081904497,-1000.0,0.000194,2]
[400087372,1767081904518,-4500.0,0.0002,2]
[400087373,1767081904539,-620.364034,0.00020187,2]
[400087374,1767081904569,-177.0,0.000207,2]
[400087375,1767081904591,-204.0,0.000227,2]
[400087376,1767081904613,-300.0,0.00023403,2]
[400087377,1767081904634,-500.0,0.00023404,2]
[400087378,1767081904656,-500.0,0.00023711,2]
[400087379,1767081904678,-3000.0,0.000238,2]
[400087380,1767081904700,-500.0,0.00023936,2]
[400087381,1767081904720,-5000.0,0.00024,2]
[400087382,1767081904743,-798.0,0.00024,2]
[400087383,1767081904764,-328.8606995,0.00024658,2]
[400087384,1767081904784,-961.8669179,0.00024676,2]
[400087385,1767081904809,-231.0,0.000247,2]
[400087386,1767081904830,-4000.0,0.00025,2]
[400087387,1767082033393,-171.36590947,0.0002231,2]
[400087388,1767082033416,-820.0,0.00025,2]
[400087389,1767082033439,-500.0,0.00025144,7]
[400087390,1767082033460,-177.0,0.00025655,2]
[400087391,1767082033481,-151.0,0.00025831,2]
[400087392,1767082033502,-500.0,0.0002586,7]
[400087393,1767082033523,-6500.0,0.00026,2]
[400087394,1767082033544,-500.0,0.00026522,7]
[400087395,1767082033566,-620.364034,0.00026676,2]
[400087396,1767082033588,-502.8811236,0.00027098,2]
[400087397,1767082033612,-472.52750413,0.00027098,2]
[400087398,1767082033637,-500.0,0.00027098,2]
[400087399,1767082033663,-500.0,0.00027098,2]
[400087400,1767082033688,-552.13566223,0.00027098,2]
[400087401,1767082033710,-500.0,0.00027098,2]
[400087402,1767082033730,-9000.0,0.000271,2]
[400087403,1767082033751,-293.444273,0.00027123,2]
[400087404,1767082033773,-500.0,0.00027309,7]
[400087405,1767082033794,-151.0,0.00027314,2]
[400087406,1767082033815,-181.37346737,0.00027487,2]
[400087407,1767082033837,-204.0,0.00027655,2]
[400087408,1767082033858,-500.0,0.00027702,7]
[400087409,1767082033879,-315.55215583,0.00027945,5]
[400087410,1767082033900,-500.0,0.00027972,7]
[400087411,1767082033925,-500.0,0.00028176,7]
[400087412,1767082033947,-1041.66666667,0.00028546,2]
[400087413,1767082033969,-151.0,0.00028796,3]
[400087414,1767082033992,-500.0,0.00029399,2]
[400087415,1767082034015,-500.0,0.00029399,2]
[400087416,1767082034036,-203.22466451,0.00029399,2]
[400087417,1767082034058,-638.86734093,0.00029399,2]
[400087418,1767082034083,-393.20333081,0.00029399,2]
[400087419,1767082034112,-500.0,0.00029399,2]
[400087420,1767082034138,-500.0,0.00029399,2]
[400087421,1767082034167,-500.0,0.00029399,2]
[400087422,1767082034190,-231.0,0.00029655,2]
[400087423,1767082034218,-600.0,0.00029681,30]
[400087424,1767082034241,-373.42273798,0.00029708,2]
[400087425,1767082034263,-1050.02,0.0002999,10]
[400087426,1767082034283,-4818.31841916,0.0002999,2]
[400087427,1767082034434,-13475.4311314,0.0002999,2]
[400087428,1767082034457,-49281.69490284,0.0003,2]
[400087429,1767082036978,875.02,0.0002999,10]
[400087446,1767082139614,457.75,0.0001277,2]
[400087511,1767082231695,-250.0,0.00027945,5]
[400087513,1767082231705,-315.17169185,0.00028493,5]
[400087551,1767082238145,-184.82830815,0.00028493,5]
[400087552,1767082238157,-4671.6379109,0.00028498,2]
[400087553,1767082238168,-895.0,0.00028498,2]
[400087554,1767082238180,-1041.66666667,0.00028777,2]
[400087555,1767082238193,-366.78,0.000288,2]
[400087556,1767082238204,-366.78,0.000288,2]
[400087557,1767082238218,-366.78,0.000289,2]
[400087558,1767082238228,-366.78,0.000289,2]
[400087559,1767082238240,-366.78,0.00029,2]
[400087560,1767082238252,-500.0,0.00029051,7]
[400087562,1767082238264,-366.78,0.000291,2]
[400087564,1767082238275,-366.78,0.000291,2]
[400087566,1767082238287,-366.78,0.000292,2]
[400087568,1767082238298,-366.78,0.000292,2]
[400087570,1767082238308,-366.78,0.000293,2]
[400087572,1767082238318,-366.78,0.000294,2]
[400087574,1767082238328,-366.78,0.000294,2]
[400087576,1767082238339,-366.78,0.000295,2]
[400087579,1767082238352,-366.78,0.000295,2]
[400087580,1767082238364,-366.78,0.000296,2]
[400087582,1767082238375,-165.87570098,0.00029708,2]
[400087583,1767082238388,-662.83930113,0.00029708,2]
[400087584,1767082238400,-151.0,0.00030279,4]
[400087585,1767082238411,-293.444273,0.00030548,60]
[400087586,1767082238423,-173.173,0.00030692,27]
[400087587,1767082238435,-183.24074953,0.00030692,27]
[400087588,1767082238447,-162.23,0.000309,7]
[400087589,1767082238459,-1333.49,0.00030958,30]
[400087590,1767082238472,-229.87145315,0.00031,120]
[400087591,1767082238484,-284.99911938,0.00031,120]
[400087592,1767082238498,-650.08686255,0.00031,120]
[400087593,1767082238511,-180.65011172,0.00031,120]
[400087594,1767082238523,-167.28493125,0.00031,120]
[400087595,1767082238536,-607.0847152,0.00031,120]
[400087596,1767082238547,-560.19462329,0.00031,120]
[400087597,1767082238558,-548.50061124,0.00031,120]
[400087598,1767082238569,-483.19642147,0.00031,120]
[400087599,1767082238579,-201.19436054,0.00031,120]
[400087600,1767082238593,-173.91029314,0.00031,120]
[400087601,1767082238604,-160.96956782,0.00031,120]
[400087602,1767082238616,-600.0,0.00031056,30]
[400087603,1767082238627,-729.18,0.0003119,10]
[400087604,1767082238638,-191.237836,0.00031272,2]
[400087605,1767082238650,-764.18639267,0.00031272,2]
[400087606,1767082238661,-168.0,0.00031432,7]
[400087607,1767082238673,-1333.49,0.00031506,31]
[400087608,1767082238684,-168.0,0.00031536,2]
[400087609,1767082238696,-168.0,0.00031555,7]
[400087610,1767082238706,-258.0,0.00031655,2]
[400087611,1767082238716,-168.0,0.00031704,2]
[400087612,1767082238726,-151.0,0.00031761,4]
[400087613,1767082238737,-168.0,0.00031805,7]
[400087614,1767082238748,-229.87145315,0.000319,120]
[400087615,1767082238758,-284.99911938,0.000319,120]
[400087616,1767082238769,-650.08686255,0.000319,120]
[400087617,1767082238780,-180.65011172,0.000319,120]
[400087618,1767082238791,-167.28493125,0.000319,120]
[400087619,1767082238801,-607.0847152,0.000319,120]
[400087620,1767082238811,-560.19462329,0.000319,120]
[400087621,1767082238822,-548.50061124,0.000319,120]
[400087622,1767082238832,-483.19642147,0.000319,120]
[400087623,1767082238843,-168.0,0.00031959,2]
[400087624,1767082238853,-2000.01,0.00032,30]
[400087625,1767082238865,-4938.0,0.00032027,30]
[400087626,1767082238875,-256.5,0.00032027,30]
[400087627,1767082238887,-1333.49,0.00032054,32]
[400087628,1767082238898,-471.7113973,0.00032123,2]
[400087629,1767082238909,-700.0,0.00032248,7]
[400087630,1767082238921,-162.23,0.000323,7]
[400087631,1767082238932,-3652.0,0.000324,120]
[400087632,1767082238943,-1806.55435509,0.00032569,2]
[400087633,1767082238954,-168.0,0.00032569,2]
[400087634,1767082238965,-1333.49,0.00032602,33]
[400087635,1767082238976,-168.0,0.00032654,7]
[400087636,1767082238987,-686.459,0.00032782,2]
[400087637,1767082238999,-1372.592,0.00032782,2]
[400087638,1767082239011,-1762.4652,0.00032782,2]
[400087639,1767082239022,-965.70893362,0.00032876,120]
[400087640,1767082239032,-575.02,0.00032876,2]
[400087641,1767082239043,-575.02,0.00032876,2]
[400087642,1767082239054,-575.02,0.00032876,2]
[400087643,1767082239064,-575.02,0.00032876,2]
[400087644,1767082239075,-575.02,0.00032876,2]
[400087645,1767082239086,-575.02,0.00032876,2]
[400087646,1767082239097,-575.02,0.00032876,2]
[400087647,1767082239107,-575.02,0.00032876,2]
[400087648,1767082239119,-575.02,0.00032876,2]
[400087649,1767082239130,-575.02,0.00032876,2]
[400087650,1767082239140,-575.02,0.00032876,2]
[400087651,1767082239151,-233.58774294,0.00032876,2]
[400087652,1767082239162,-500.0,0.00032877,5]
[400087653,1767082239172,-1179.20753077,0.00032889,2]
[400087654,1767082239183,-229.87145315,0.000329,120]
[400087655,1767082239194,-284.99911938,0.000329,120]
[400087656,1767082239208,-650.08686255,0.000329,120]
[400087657,1767082239219,-607.0847152,0.000329,120]
[400087658,1767082239230,-560.19462329,0.000329,120]
[400087659,1767082239240,-548.50061124,0.000329,120]
[400087660,1767082239251,-483.19642147,0.000329,120]
[400087661,1767082239263,-350.9337218,0.00032918,2]
[400087662,1767082239273,-252.25593146,0.00032918,2]
[400087663,1767082239284,-1008.01470212,0.00032918,2]
[400087664,1767082239435,-168.0,0.00032933,2]
[400087665,1767082239451,-168.0,0.0003295,2]
[400087666,1767082239463,-607.65,0.00032955,10]
[400087667,1767082239473,-4577.4024982,0.00032965,2]
[400087668,1767082239482,-387.21666642,0.00032965,2]
[400087669,1767082239491,-4577.4024982,0.00032968,2]
[400087670,1767082239501,-387.21666642,0.00032968,2]
[400087671,1767082239510,-506.38,0.00032968,10]
[400087672,1767082239519,-500.0,0.00032977,7]
[400087674,1767082239528,-297.20713866,0.00032977,7]
[400087676,1767082239538,-500.0,0.00032977,7]
[400087678,1767082239547,-175.24233156,0.00032977,7]
[400087680,1767082239557,-500.0,0.00032977,7]
[400087682,1767082239567,-500.0,0.00032977,7]
[400087685,1767082239576,-32041.8174874,0.00032978,2]
[400087686,1767082239585,-2710.51666494,0.00032978,2]
[400087688,1767082239595,-3665.0,0.00032985,7]
[400087689,1767082239605,-293200.2772509,0.00032988,2]
[400087690,1767082239616,-50351.4274802,0.00032989,2]
[400087691,1767082239626,-4259.38333062,0.00032989,2]
[400087692,1767082239635,-354625.04049529,0.00032999,2]
[400087693,1767082239651,-2211.15029609,0.00032999,2]
[400087694,1767082240385,-294125.24795369,0.00032999,2]
[400087695,1767082240395,-130299.82380008,0.00033,20]
[400087696,1767082240459,-366.78,0.000296,2]
[400087697,1767082240469,-366.78,0.000297,2]
[400087698,1767082240479,-366.78,0.000298,2]
[400087699,1767082240489,-4526.0,0.00032027,30]
[400087700,1767082240499,-11299.74355108,0.00033,20]
[400087804,1767082246068,-366.78,0.000298,2]
[400087806,1767082246078,-366.78,0.000299,2]
[400087808,1767082246087,-366.78,0.000299,2]
[400087810,1767082246096,-366.78,0.0003,2]
[400087812,1767082246106,-366.78,0.000301,2]
[400087814,1767082246117,-366.78,0.000301,2]
[400087816,1767082246126,-366.78,0.000302,2]
[400087818,1767082246136,-366.78,0.000302,2]
[400087820,1767082246146,-161.26546303,0.00032458,2]
[400087879,1767082536424,500.0,0.00028767,120]
[400087880,1767082662134,-385.96465091,0.00024953,2]
[400087881,1767082662157,-500.0,0.00025629,7]
[400087882,1767082662180,-1041.66666667,0.00026454,2]
[400087883,1767082662203,-5000.0,0.00026512,2]
[400087884,1767082662228,-300.0,0.00026847,2]
[400087885,1767082662249,-300.0,0.00026848,2]
[400087886,1767082662271,-300.0,0.00026848,2]
[400087887,1767082662294,-300.0,0.00026848,2]
[400087888,1767082662316,-7265.04712752,0.00027042,2]
[400087889,1767082662339,-300.0,0.00027042,30]
[400087890,1767082662365,-300.0,0.00027042,30]
[400087891,1767082662390,-300.0,0.00027042,30]
[400087892,1767082662417,-300.0,0.00027042,30]
[400087893,1767082662440,-300.0,0.00027042,30]
[400087894,1767082662462,-300.0,0.00027042,30]
[400087895,1767082662487,-300.0,0.00027042,30]
[400087896,1767082662511,-300.0,0.00027042,30]
[400087897,1767082662537,-300.0,0.00027042,30]
[400087898,1767082662562,-300.0,0.00027042,30]
[400087899,1767082662586,-300.0,0.00027042,30]
[400087900,1767082662610,-300.0,0.00027042,30]
[400087901,1767082662635,-300.0,0.00027042,30]
[400087902,1767082662667,-300.0,0.00027042,30]
[400087903,1767082662692,-300.0,0.00027042,30]
[400087904,1767082662719,-600.0,0.00027582,30]
[400087905,1767082662742,-177.0,0.00027765,2]
[400087906,1767082662761,-250.0,0.00027945,5]
[400087907,1767082662781,-167.56030137,0.00028178,2]
[400087908,1767082662802,-400.0,0.00028493,5]
[400087909,1767082662822,-1138.33181144,0.00028659,2]
[400087910,1767082662845,-581.13312186,0.00028759,2]
[400087911,1767082662866,-500.0,0.00028759,2]
[400087912,1767082662887,-567.96117307,0.00028759,2]
[400087913,1767082662908,-500.0,0.00028759,2]
[400087914,1767082662932,-500.0,0.00028759,2]
[400087915,1767082662954,-500.0,0.00028759,2]
[400087916,1767082662977,-500.0,0.00028759,2]
[400087917,1767082662999,-500.0,0.00028759,2]
[400087918,1767082663023,-500.0,0.00028759,2]
[400087919,1767082663047,-500.0,0.00028759,2]
[400087920,1767082663071,-500.0,0.00028759,2]
[400087921,1767082663092,-500.0,0.00028759,2]
[400087922,1767082663116,-500.0,0.00028759,2]
[400087923,1767082663140,-451.11692997,0.00028759,2]
[400087924,1767082663164,-500.0,0.00028759,2]
[400087925,1767082663188,-250.44129288,0.00028759,2]
[400087926,1767082663211,-320.24699613,0.00028759,2]
[400087927,1767082663234,-500.0,0.00028759,2]
[400087928,1767082663257,-500.0,0.00028759,2]
[400087929,1767082663279,-500.0,0.00028759,2]
[400087930,1767082663299,-28341.24003385,0.0002876,20]
[400087931,1767082663320,-178.40032124,0.00028767,2]
[400087932,1767082663342,-176.06,0.000288,2]
[400087933,1767082663364,-176.06,0.000288,2]
[400087934,1767082663384,-176.06,0.000289,2]
[400087935,1767082663410,-176.06,0.000289,2]
[400087936,1767082663433,-176.06,0.00029,2]
[400087937,1767082663456,-420.0,0.00029029,2]
[400087938,1767082663479,-303.0,0.0002903,2]
[400087939,1767082663500,-420.0,0.0002903,2]
[400087940,1767082663641,-350.0,0.0002903,2]
[400087941,1767082663663,-500.0,0.00029099,2]
[400087942,1767082663690,-500.0,0.00029099,2]
[400087943,1767082663712,-191.88965349,0.00029099,2]
[400087944,1767082663734,-198.9911478,0.00029099,2]
[400087945,1767082663758,-500.0,0.00029099,2]
[400087946,1767082663783,-500.0,0.00029099,2]
[400087947,1767082663808,-500.0,0.00029099,2]
[400087948,1767082663833,-421.34648954,0.00029099,2]
[400087949,1767082663861,-1159.12687525,0.000291,2]
[400087950,1767082663886,-176.06,0.000291,2]
[400087951,1767082663909,-176.06,0.000291,2]
[400087952,1767082663931,-500.0,0.00029199,2]
[400087953,1767082663954,-176.06,0.000292,2]
[400087954,1767082663979,-176.06,0.000292,2]
[400087955,1767082663999,-178.40032124,0.00029278,6]
[400087956,1767082664020,-176.06,0.000293,2]
[400087957,1767082664042,-176.06,0.000294,2]
[400087958,1767082664064,-176.06,0.000294,2]
[400087959,1767082664087,-500.0,0.00029473,2]
[400087960,1767082664116,-176.06,0.000295,2]
[400087961,1767082664139,-176.06,0.000295,2]
[400087962,1767082664160,-176.06,0.000296,2]
[400087963,1767082664181,-176.06,0.000296,2]
[400087964,1767082664203,-176.06,0.000297,2]
[400087965,1767082664223,-500.0,0.00029747,2]
[400087966,1767082664247,-204.0,0.00029765,2]
[400087967,1767082664269,-178.40032124,0.00029789,10]
[400087968,1767082664292,-176.06,0.000298,2]
[400087969,1767082664313,-176.06,0.000298,2]
[400087970,1767082664336,-1138.33181142,0.00029897,2]
[400087971,1767082664358,-176.06,0.000299,2]
[400087972,1767082664380,-176.06,0.000299,2]
[400087973,1767082664405,-176.06,0.0003,2]
[400087974,1767082664810,204.0,0.00029417,2]
[400087975,1767082677033,158.40466357,0.0003,2]
[400087976,1767082754402,-500.0,0.00028759,2]
[400087977,1767082754439,-500.0,0.00029033,2]
[400087978,1767082754463,-500.0,0.00029307,2]
[400087979,1767082754487,-202.24966624,0.00029499,2]
[400087980,1767082754512,-439.01299222,0.00029499,2]
[400087981,1767082754534,-194.49347699,0.00029499,2]
[400087982,1767082754555,-500.0,0.00029581,2]
[400087983,1767082754578,-2714.02,0.000301,2]
[400087984,1767082754600,-2714.02,0.000301,2]
[400087985,1767082754622,-2714.02,0.000302,2]
[400087986,1767082754644,-2714.02,0.000302,2]
[400087987,1767082754665,-178.40032124,0.00030299,14]
[400087988,1767082754688,-2714.02,0.000303,2]
[400087989,1767082754709,-2714.02,0.000304,2]
[400087990,1767082754730,-2714.02,0.000304,2]
[400087991,1767082754752,-2714.02,0.000305,2]
[400087992,1767082754773,-2714.02,0.000305,2]
[400087993,1767082754794,-2714.02,0.000306,2]
[400087994,1767082754816,-2714.02,0.000306,2]
[400087995,1767082754838,-2714.02,0.000307,2]
[400087996,1767082754860,-2714.02,0.000308,2]
[400087997,1767082754882,-2714.02,0.000308,2]
[400087998,1767082754904,-178.40032124,0.0003081,18]
[400087999,1767082754926,-5000.0,0.00030846,2]
[400088000,1767082754948,-165.84,0.000309,7]
[400088001,1767082754970,-2714.02,0.000309,2]
[400088002,1767082754991,-2714.02,0.000309,2]
[400088003,1767082755013,-1169.22,0.00030958,30]
[400088004,1767082755035,-484.32275744,0.00030999,2]
[400088005,1767082755059,-500.0,0.00030999,2]
[400088006,1767082755085,-500.0,0.00030999,2]
[400088007,1767082755109,-500.0,0.00030999,2]
[400088008,1767082755132,-194.94254268,0.00030999,2]
[400088009,1767082755283,-405.73390963,0.00031,120]
[400088010,1767082755303,-171.04413504,0.00031,120]
[400088011,1767082755325,-201.19436054,0.00031,120]
[400088012,1767082755347,-357.41110051,0.00031,120]
[400088013,1767082755367,-234.11424397,0.00031,120]
[400088014,1767082755388,-180.65011172,0.00031,120]
[400088015,1767082755409,-167.28493125,0.00031,120]
[400088016,1767082755432,-471.26548812,0.00031,120]
[400088017,1767082755454,-173.91029313,0.00031,120]
[400088018,1767082755476,-440.09784243,0.00031,120]
[400088019,1767082755507,-414.38630072,0.00031,120]
[400088020,1767082755527,-2554.1920992,0.00031,5]
[400088021,1767082755548,-1878.26386455,0.00031,2]
[400088022,1767082803346,-1000.0,0.000194,2]
[400088023,1767082803369,-729.18,0.00028649,10]
[400088024,1767082803400,-198270.82,0.00028659,2]
[400088025,1767082819828,2455.51424042,0.00025205,120]
[400088026,1767082904278,-250.0,0.00027945,5]
[400088027,1767082904302,-173.172,0.00028086,18]
[400088028,1767082904324,-183.24,0.00028086,18]
[400088029,1767082904345,-350.0,0.00028493,5]
[400088030,1767082904368,-853.7488586,0.00028559,2]
[400088031,1767082904389,-1041.66666667,0.0002864,2]
[400088032,1767082904411,-753.49,0.00028649,10]
[400088033,1767082904433,-802.91,0.00028649,10]
[400088034,1767082904456,-578.18807181,0.00028658,2]
[400088035,1767082904487,-500.0,0.00028658,2]
[400088036,1767082904512,-500.0,0.00028658,2]
[400088037,1767082904537,-500.0,0.00028658,2]
[400088038,1767082904564,-189.03247935,0.00028658,2]
[400088039,1767082904589,-508.4827628,0.00028658,2]
[400088040,1767082904732,-192816.06916077,0.00028659,2]
[400088065,1767083431878,-720.0,0.000199,2]
[400088067,1767083431889,-158.40466357,0.000199,2]
[400088068,1767083431898,-244.62176265,0.0002,2]
[400088070,1767083431910,-346.67607074,0.0002,2]
[400088073,1767083431925,-393.43201551,0.0002,2]
[400088075,1767083431937,-376.67077233,0.0002,2]
[400088077,1767083431948,-1522.49209085,0.0002,2]
[400088079,1767083431958,-370.9617379,0.0002,2]
[400088081,1767083431968,-505.45309736,0.0002,2]
[400088083,1767083431977,-23000.0,0.0002,2]
[400088084,1767083431987,-202.37363526,0.0002,2]
[400088085,1767083431997,-503.52743875,0.0002,2]
[400088086,1767083432007,-300.0,0.00020399,2]
[400088087,1767083432017,-300.0,0.00020399,2]
[400088088,1767083432027,-300.0,0.00020399,2]
[400088089,1767083432037,-300.0,0.00020399,2]
[400088090,1767083432047,-300.0,0.00020399,2]
[400088091,1767083432057,-300.0,0.00020399,2]
[400088092,1767083432068,-300.0,0.00020399,2]
[400088094,1767083432077,-300.0,0.00020399,2]
[400088096,1767083432087,-300.0,0.00020399,2]
[400088098,1767083432096,-300.0,0.00020399,2]
[400088100,1767083432105,-300.0,0.00020399,2]
[400088102,1767083432114,-300.0,0.00020399,2]
[400088104,1767083432124,-300.0,0.00020399,2]
[400088106,1767083432134,-300.0,0.00020399,2]
[400088108,1767083432143,-300.0,0.00020399,2]
[400088109,1767083432154,-600.0,0.00020399,2]
[400088111,1767083432163,-188.05160505,0.00021,2]
[400088113,1767083432175,-39679.96865493,0.00021,2]
[400088114,1767083432185,-720.0,0.00022439,10]
[400088115,1767083432194,-1000.0,0.0002387,2]
[400088116,1767083432203,-962.13908306,0.00024142,2]
[400088117,1767083432213,-550.0284775,0.00024649,2]
[400088118,1767083432223,-7011.608514,0.0002465,2]
[400088119,1767083432233,-864.0,0.00024683,10]
[400088120,1767083432242,-500.0,0.00025703,7]
[400088121,1767083432251,-352.86,0.0002599,10]
[400088122,1767083432261,-610.28,0.0002599,10]
[400088123,1767083432270,-508.57,0.0002599,10]
[400088124,1767083432280,-423.81,0.0002599,10]
[400088125,1767083432289,-16536.05662912,0.00026,30]
[400088126,1767083432320,-500.0,0.00024649,2]
[400088127,1767083432329,-112.13903081,0.00026,30]
[400088128,1767083432341,-4238.17941727,0.00026,30]
[400088169,1767083437897,-500.0,0.00024649,2]
[400088170,1767083437908,-250.7999976,0.00024649,2]
[400088171,1767083437921,-287.46067191,0.00024649,2]
[400088172,1767083437931,-16699.65907788,0.00026,30]
[400088173,1767083437940,-1041.66666667,0.0002645,2]
[400088174,1767083437950,-5000.0,0.00026513,2]
[400088175,1767083437960,-700.0,0.00026973,7]
[400088176,1767083437969,-1000.0,0.00027151,30]
[400088177,1767083437978,-177.0,0.00027454,2]
[400088178,1767083437988,-400.0,0.00027945,5]
[400088179,1767083437997,-1179.20753077,0.00028559,2]
[400088180,1767083438007,-2190.58237091,0.00028577,2]
[400088181,1767083438018,-3150.92128269,0.00028577,2]
[400088182,1767083438027,-4107.85444853,0.00028639,2]
[400088183,1767083438039,-11115.23852797,0.00028639,2]
[400088184,1767083438048,-2083.54591956,0.00028639,2]
[400088185,1767083438058,-65966.7362314,0.00028649,2]
[400088186,1767083438068,-9028.69898476,0.00028649,2]
[400088187,1767083438078,-342.14,0.00028658,2]
[400088188,1767083438088,-608913.11083923,0.00028659,2]
[400088189,1767083438097,-1762.4652,0.00028699,2]
[400088190,1767083438107,-1061.08,0.000287,14]
[400088191,1767083438116,-199.54,0.000287,7]
[400088192,1767083438126,-4088.18,0.000287,2]
[400088193,1767083438136,-3256.62662481,0.0002876,2]
[400088194,1767083438146,-19127.78853029,0.0002876,2]
[400088195,1767083438156,-341.00495358,0.00028767,2]
[400088196,1767083438166,-172.33062748,0.000288,7]
[400088197,1767083438176,-790.68,0.000288,2]
[400088198,1767083438185,-790.68,0.000288,2]
[400088199,1767083438195,-5074.36432549,0.0002889,2]
[400088200,1767083438205,-694.51530652,0.0002889,2]
[400088201,1767083438214,-151.0,0.00028893,3]
[400088202,1767083438224,-790.68,0.000289,2]
[400088203,1767083438234,-790.68,0.000289,2]
[400088204,1767083438243,-2225.14761447,0.0002896,120]
[400088205,1767083438253,-171.32317497,0.00028986,2]
[400088206,1767083438263,-206.01879,0.00029,120]
[400088207,1767083438272,-889.49824385,0.00029,2]
[400088208,1767083438286,-2406.38515982,0.00029,10]
[400088209,1767083438295,-790.68,0.00029,2]
[400088210,1767083438305,-341.00495358,0.00029022,4]
[400088211,1767083438315,-790.68,0.000291,2]
[400088212,1767083438324,-790.68,0.000291,2]
[400088213,1767083438334,-220.62847199,0.00029102,2]
[400088214,1767083438344,-790.68,0.000292,2]
[400088215,1767083438353,-790.68,0.000292,2]
[400088216,1767083438363,-341.00495358,0.00029278,6]
[400088217,1767083438372,-790.68,0.000293,2]
[400088218,1767083438382,-790.68,0.000294,2]
[400088219,1767083438391,-790.68,0.000294,2]
[400088220,1767083438400,-204.0,0.00029454,2]
[400088221,1767083438412,-5074.36432549,0.0002949,2]
[400088222,1767083438421,-694.51530652,0.0002949,2]
[400088223,1767083438431,-384.21694444,0.000295,120]
[400088224,1767083438440,-790.68,0.000295,2]
[400088225,1767083438450,-790.68,0.000295,2]
[400088226,1767083438459,-341.00495358,0.00029533,8]
[400088227,1767083438469,-790.68,0.000296,2]
[400088228,1767083438479,-790.68,0.000296,2]